Cogmind - Beta 14 @@@ ROGUE MODE // 2025.04.28 @ 13:13:16 // Winter2019/RPGLIKE Player: DeepestRoots Result: Destroyed by X-62 Marksman with Gauss Rifle Performance ------------- Evolutions (2) 1000 Regions Visited (5) 1000 Robots Destroyed (63) 315 Value Destroyed (1811) 1811 Prototype IDs (0) 0 Alien Tech Used (0) 0 Bonus (40) 40 TOTAL SCORE: 4166 Bonus ------- High Alert Combat Kills 35 Follower Combat Kills 35 Friendly Fire -30 Cogmind --------- Core Integrity 0/600 Matter 230/300 Energy 61/250 System Corruption 0% Temperature Warm (113) Movement Walking (130) Location -8/Materials Parts ------- > --- POWER (1) -------- Ion Engine > --- PROPULSION (2) --- Aluminum Leg Titanium Leg > --- UTILITY (3) ------ Heat Sink Seismic Detector > --- WEAPON (3) ------- EM Pulse Gun EM Pulse Gun > --- INVENTORY (2) ---- Signal Interpreter Rocket Launcher Peak State ------------ > --- POWER ------------ Ion Engine > --- PROPULSION ------- Aluminum Leg Titanium Leg > --- UTILITY ---------- Heat Sink Seismic Detector Medium Armor Plating > --- WEAPON ----------- EM Pulse Gun EM Pulse Gun EM Pulse Gun > --- INVENTORY -------- Signal Interpreter Rocket Launcher [Rating: 12] Favorites ----------- Power Ion Engine Engine Ion Engine Propulsion Aluminum Leg Leg Aluminum Leg Utility Seismic Detector Device Seismic Detector Protection Light Armor Plating Weapon EM Pulse Gun Energy Gun EM Pulse Gun Ballistic Gun Light Assault Rifle Launcher Rocket Launcher Build | -11 -10 -10 -10 -9 -8 ------- Run | Yrd Mat Min Exi Min Mat Slots Evolved 5 | 3 2 . . . . Power . | . . . . . . Propulsion 1 | 1 . . . . . Utility 2 | 1 1 . . . . Weapon 2 | 1 1 . . . . Parts Attached 18 | 7 3 2 . 4 2 Power 1 | 1 . . . . . Engine 1 | 1 . . . . . Core . | . . . . . . Reactor . | . . . . . . Propulsion 3 | 2 . 1 . . . Treads . | . . . . . . Leg 3 | 2 . 1 . . . Wheel . | . . . . . . Hover . | . . . . . . Flight . | . . . . . . Utility 6 | 2 2 1 . 1 . Device 4 | 2 1 1 . . . Storage . | . . . . . . Processor . | . . . . . . Hackware . | . . . . . . Protection 2 | . 1 . . 1 . Artifact . | . . . . . . Weapon 8 | 2 1 . . 3 2 Energy Gun 6 | 2 . . . 3 1 Energy Cannon . | . . . . . . Ballistic Gun 1 | . 1 . . . . Ballistic Cannon . | . . . . . . Launcher 1 | . . . . . 1 Special Weapon . | . . . . . . Impact Weapon . | . . . . . . Slashing Weapon . | . . . . . . Piercing Weapon . | . . . . . . Special Melee Weapon . | . . . . . . Unidentified Prototypes . | . . . . . . Parts Lost 3 | . . 1 . . 2 Power . | . . . . . . Propulsion . | . . . . . . Utility 2 | . . 1 . . 1 Weapon 1 | . . . . . 1 Highest Loss Streak 1 | . . 1 . . 1 To Critical Strikes . | . . . . . . Average Slot Usage (%) 99 | . 99 99 100 100 91 Engine 11 | . 13 11 11 11 11 Leg 23 | . 27 22 22 22 22 Device 21 | . 16 22 33 23 22 Protection 9 | . 11 10 . 9 3 Energy Gun 27 | . 27 22 22 31 32 Ballistic Gun 3 | . . 11 11 1 . Peak Build Rating 12 | 9 9 11 11 12 12 Average Rating 10 | 5 7 10 11 11 10 On Entrance 8 | . 9 9 11 11 12 Naked Turns . | . . . . . . Heaviest Build 20 | 11 15 15 14 20 20 Greatest Support 27 | 20 20 27 27 27 27 Greatest Overweight (x) . | . . . . . . Average Overweight (x) . | . . . . . . Largest Inventory Capacity 2 | 1 1 2 2 2 2 Average Capacity 1 | . 1 1 2 2 2 Most Carried 2 | 1 1 2 2 2 2 Average Carried 1 | . . 1 2 1 2 Final Capacity 2 | 1 1 2 2 2 2 Final Carried 2 | 1 . 2 2 2 2 Class Distribution -------------------- 69% | Gunner 30% | Mutant Dominant Class ---------------- Mutant | -10/Materials Gunner | -10/Mines Gunner | -10/Exiles Gunner | -9/Mines Gunner | -8/Materials Resources | -11 -10 -10 -10 -9 -8 ----------- Run | Yrd Mat Min Exi Min Mat Matter Collected 389 | 270 34 33 . 52 . Remotely . | . . . . . . Salvage Created 1997 | 53 654 193 . 710 387 Parts 146 | 9 56 15 . 34 32 Haulers Intercepted 2 | . 2 . . . . Recyclers Shooed 1 | 1 . . . . . Parts Field Recycled . | . . . . . . Retrieved Matter . | . . . . . . Parts Self-Destructed . | . . . . . . Prevented . | . . . . . . Kills | -11 -10 -10 -10 -9 -8 ------- Run | Yrd Mat Min Exi Min Mat Combat Hostiles Destroyed 50 | . 17 8 . 12 13 Guns 35 | . 16 8 . 9 2 AOE 13 | . 1 . . 2 10 Classes Destroyed 10 | 1 6 . . 1 2 Worker 3 | . 1 . . 1 1 Builder 1 | . . . . . 1 Tunneler 2 | 2 . . . . . Hauler 2 | . 2 . . . . Mechanic 1 | . . . . . 1 Operator 1 | . 1 . . . . Watcher 3 | . 2 . . . 1 Swarmer 13 | . 6 3 . 2 2 Grunt 34 | . 11 5 . 8 10 Sentry 3 | . . . . 2 1 Best Kill Streak 6 | 2 4 3 . 4 6 Combat Bots Only 5 | . 4 3 . 4 5 Max Kills in Single Turn 3 | 1 2 2 . 2 3 Gunslinging 1 | . . 1 . . . Exploded 2 | . 1 . . 2 2 Melee . | . . . . . . Uniques/NPCs Destroyed . | . . . . . . Combat | -11 -10 -10 -10 -9 -8 -------- Run | Yrd Mat Min Exi Min Mat Hostile Shots Fired 262 | . 81 29 . 50 102 Missed 82 | . 24 8 . 18 32 Damage Taken 2293 | . 598 236 . 403 1056 Core 1695 | . 421 150 . 303 821 Absorbed by Shields . | . . . . . . Redirected to Core 1446 | . 389 131 . 228 698 Regen/Repaired (Parts) 18 | . 18 . . . . Core Remaining (%) 100 | 100 . . . 100 . Volleys Fired 139 | 4 55 17 . 29 34 Largest 3 | 2 3 3 . 3 3 Hottest 120 | 80 100 100 . 120 120 Shots Fired 350 | 8 114 51 . 87 90 Gun 345 | 8 114 51 . 87 85 Cannon . | . . . . . . Launcher 5 | . . . . . 5 Special . | . . . . . . Kinetic 38 | . 4 17 . 17 . Thermal . | . . . . . . Explosive 5 | . . . . . 5 Electromagnetic 307 | 8 110 34 . 70 85 Robot Hit Streak 8 | 2 6 5 . 8 6 Robot Miss Streak 6 | 1 4 3 . 4 6 Penetration Max . | . . . . . . Secondary Targets 8 | . . 4 . 2 2 Max Gunslinging Chain 1 | . . 1 . 1 1 Shots Hit Robots 203 | 5 61 31 . 56 50 Core Hits 103 | 2 32 12 . 24 33 Critical Kills . | . . . . . . Critical Parts Destroyed . | . . . . . . Critical Strikes 3 | . 1 1 . 1 . Corrupt 3 | . 1 1 . 1 . Melee Attacks . | . . . . . . Impact . | . . . . . . Slashing . | . . . . . . Piercing . | . . . . . . Sneak Attacks . | . . . . . . Combat Hostiles . | . . . . . . Follow-up Attacks . | . . . . . . Damage Inflicted 4470 | 131 1219 496 . 868 1756 Guns 2603 | 70 884 398 . 636 615 Cannons . | . . . . . . Explosions 1816 | 61 314 93 . 207 1141 Melee . | . . . . . . Ramming 51 | . 21 5 . 25 . Kinetic 141 | . 6 57 . 78 . Thermal 1042 | 61 233 93 . 207 448 Explosive 693 | . . . . . 693 Electromagnetic 2543 | 70 959 341 . 558 615 Impact . | . . . . . . Slashing . | . . . . . . Piercing . | . . . . . . Highest Corruption . | . . . . . . Average Corruption . | . . . . . . Corruption Purged . | . . . . . . Corruption Blocked . | . . . . . . Overload Shots . | . . . . . . Overflow Damage 46 | . 18 . . . 28 Projectiles . | . . . . . . Explosions 46 | . 18 . . . 28 Melee . | . . . . . . Knockbacks 2 | . 1 . . 1 . Impact 2 | . 1 . . 1 . Kinetic . | . . . . . . Secondary . | . . . . . . Self-Inflicted Damage 110 | . 41 . . 13 56 Shots 5 | . 2 . . 1 2 Rammed . | . . . . . . Targets Rammed 13 | . 7 2 . 4 . Kicked 13 | . 7 2 . 4 . Crushed . | . . . . . . Highest Temperature 321 | 72 213 192 . 135 321 Average Temperature 75 | 38 72 77 . 48 110 Received Heat Transfer 930 | . 177 114 . 207 432 Effects 1 | . . . . . 1 Short Circuit 1 | . . . . . 1 Siege Activations . | . . . . . . Robots Corrupted 2 | . . . . 1 1 Combat Hostiles 2 | . . . . 1 1 Parts Fried 9 | . 2 3 . 2 2 Impact Corruptions . | . . . . . . Robots Melted . | . . . . . . Combat Hostiles . | . . . . . . Parts Melted 1 | . . 1 . . . Heat Transferred 1400 | 150 350 150 . 200 550 Parts Sabotaged . | . . . . . . Parts Stolen . | . . . . . . Parts Stripped . | . . . . . . Power Chain Reactions 18 | 1 6 1 . 4 6 Alert | -11 -10 -10 -10 -9 -8 ------- Run | Yrd Mat Min Exi Min Mat Peak Influence 554 | 10 387 123 . 313 554 Initial 38 | . 6 38 . . . Average 127 | 3 173 82 . 106 195 Maximum Alert Level 2 | . 1 . . 1 2 Low Security (%) 79 | 100 62 100 . 85 51 Level 1 19 | . 37 . . 14 34 Level 2 . | . . . . . 14 Level 3 . | . . . . . . Level 4 . | . . . . . . Level 5 . | . . . . . . High Security . | . . . . . . Max Security . | . . . . . . Squads Dispatched 13 | . 6 2 . . 5 Investigation 5 | . 3 1 . . 1 Extermination . | . . . . . . Reinforcement 6 | . 3 . . . 3 Assault 1 | . . 1 . . . Garrison 1 | . . . . . 1 Intercept . | . . . . . . Searches Triggered . | . . . . . . Construction Impeded 1 | . . . . . 1 Haulers Reinforced . | . . . . . . Active Scanning Responses . | . . . . . . Cargo Convoy Interrupts . | . . . . . . Stealth | -11 -10 -10 -10 -9 -8 --------- Run | Yrd Mat Min Exi Min Mat Distress Signals 7 | . 3 . . 1 3 Communications Jammed . | . . . . . . Distress Signals . | . . . . . . Times Spotted 84 | . 29 9 . 17 29 Peak Tracking Total 8 | . 7 4 . 3 8 Tactical Retreats 8 | . 1 . . 4 3 Traps | -11 -10 -10 -10 -9 -8 ------- Run | Yrd Mat Min Exi Min Mat Traps Triggered 1 | . . . . . 1 Indirectly . | . . . . . . Trap Hack Attempts . | . . . . . . Triggered . | . . . . . . Disarmed . | . . . . . . Reprogrammed . | . . . . . . Reused . | . . . . . . Traps Extracted . | . . . . . . Installed . | . . . . . . Triggered . | . . . . . . Machines | -11 -10 -10 -10 -9 -8 ---------- Run | Yrd Mat Min Exi Min Mat Machines Disabled 9 | . 6 . . . 3 Max in Single Turn 3 | . 3 . . . 2 Machines Repaired . | . . . . . . Machines Dismantled . | . . . . . . Machines Sabotaged . | . . . . . . Overloaded Fab Kills . | . . . . . . Hacking | -11 -10 -10 -10 -9 -8 --------- Run | Yrd Mat Min Exi Min Mat Machines Accessed 9 | . 7 1 1 . . Terminals 5 | . 5 . . . . Fabricators . | . . . . . . Repair Stations 1 | . 1 . . . . Recycling Units 1 | . 1 . . . . Scanalyzers . | . . . . . . Garrison Access . | . . . . . . Total Hacks 18 | . 16 1 1 . . Successful 9 | . 7 1 1 . . Failed 8 | . 8 . . . . Catastrophic 1 | . 1 . . . . Database Lockouts 1 | . 1 . . . . Manual 9 | . 8 . 1 . . Terminals 14 | . 14 . . . . Fabricators . | . . . . . . Repair Stations 1 | . 1 . . . . Recycling Units 1 | . 1 . . . . Scanalyzers . | . . . . . . Garrison Access . | . . . . . . Terminal Hacks 5 | . 3 1 1 . . Record 1 | . . . 1 . . Robot Analysis 1 | . 1 . . . . Open Door 1 | . . 1 . . . Level Access Points 1 | . 1 . . . . Unreport Threat 1 | . 1 . . . . Fabricator Hacks . | . . . . . . Repair Station Hacks . | . . . . . . Recycling Unit Hacks 1 | . 1 . . . . Retrieve Components 1 | . 1 . . . . Scanalyzer . | . . . . . . Garrison Access Hacks . | . . . . . . Unauthorized Hacks 3 | . 3 . . . . Terminals 2 | . 2 . . . . Botnet 2 | . 2 . . . . Fabricators . | . . . . . . Repair Stations 1 | . 1 . . . . Patch 1 | . 1 . . . . Recycling Units . | . . . . . . Scanalyzers . | . . . . . . Garrison Access . | . . . . . . Data Cores Recovered 1 | . 1 . . . . Used . | . . . . . . Hacking Detections 3 | . 3 . . . . Full Trace Events 1 | . 1 . . . . Feedback Events . | . . . . . . Feedback Blocked . | . . . . . . Robot Schematics Acquired . | . . . . . . Robots Built . | . . . . . . Authchips . | . . . . . . Time . | . . . . . . Total Robot Build Rating . | . . . . . . Part Schematics Acquired . | . . . . . . Parts Built . | . . . . . . Authchips . | . . . . . . Time . | . . . . . . Total Part Build Rating . | . . . . . . Parts Repaired . | . . . . . . Time . | . . . . . . Parts Recycled . | . . . . . . Recycled Matter . | . . . . . . Retrieved Matter . | . . . . . . Retrieved Components 10 | . 10 . . . . Parts Scanalyzed . | . . . . . . Part Schematics Acquired . | . . . . . . Parts Damaged . | . . . . . . Bothacking | -11 -10 -10 -10 -9 -8 ------------ Run | Yrd Mat Min Exi Min Mat Used RIF Installer . | . . . . . . Robots Hacked . | . . . . . . Non-combat . | . . . . . . Combat . | . . . . . . Robot Hacks Applied . | . . . . . . Relay Couplers Released . | . . . . . . Fabnet Peak Effective % . | . . . . . . Robots Rewired . | . . . . . . Allies Hacked . | . . . . . . Hacks Repelled . | . . . . . . Allies | -11 -10 -10 -10 -9 -8 -------- Run | Yrd Mat Min Exi Min Mat Total Allies 1 | . . 1 . . . Largest Group 1 | . . 1 . . . Highest-Rated Group 31 | . . 31 . . . Highest-Rated Ally 31 | . . 31 . . . Total Orders . | . . . . . . Ally Attacks 5 | . . 5 . . . Total Damage 105 | . . 105 . . . Kills 1 | . . 1 . . . Allies Corrupted . | . . . . . . Allies Melted 1 | . . 1 . . . Intel | -11 -10 -10 -10 -9 -8 ------- Run | Yrd Mat Min Exi Min Mat Robot Analysis Total 1 | . 1 . . . . Derelict Logs Recovered 3 | . . 2 . 1 . Drone Launches . | . . . . . . Drone Recoveries . | . . . . . . Exploration | -11 -10 -10 -10 -9 -8 ------------- Run | Yrd Mat Min Exi Min Mat Turns Passed 4200 | 85 1316 878 287 1384 250 Spaces Moved 2742 | 55 855 593 202 962 75 Core 6 | 6 . . . . . Treads . | . . . . . . Legs 2736 | 49 855 593 202 962 75 Wheels . | . . . . . . Hover . | . . . . . . Flight . | . . . . . . Fastest Speed 50 | 50 120 120 125 125 125 Average Speed 123 | 112 120 124 125 125 127 Slowest Speed 130 | 120 120 125 125 125 130 Overloaded Moves . | . . . . . . Propulsion Burnouts . | . . . . . . Robots Hopped . | . . . . . . Cave-ins Triggered . | . . . . . . Exploration Rate (%) 61 | 4 98 98 59 100 8 Regions Visited 5 Branch Regions 3 Pre-discovered Areas 2 | . . 1 1 . . Known Exits Taken . | . . . . . . Unknown Exits Taken 5 | 1 1 1 1 1 . Scrap Searched 4 | . . 2 . 2 . Spaces Dug . | . . . . . . Terrain Destroyed 112 | 4 15 5 . 17 71 Melee . | . . . . . . Projectile . | . . . . . . AOE 112 | 4 15 5 . 17 71 Terrain Rammed . | . . . . . . Walls Destroyed . | . . . . . . Machines Disabled . | . . . . . . Actions | -11 -10 -10 -10 -9 -8 --------- Run | Yrd Mat Min Exi Min Mat Total 3271 | 66 1032 697 236 1080 160 Wait 301 | . 96 66 35 64 40 Move 2737 | 54 854 592 201 961 75 Hop . | . . . . . . Pick Up 5 | 1 . 3 . 1 . Fast Attach 9 | 7 1 . . 1 . Attach 2 | . 1 1 . . . Detach . | . . . . . . Swap 7 | . 1 1 . 3 2 Drop 4 | . . 1 . 3 . Fire 139 | 4 55 17 . 29 34 Melee . | . . . . . . Ram . | . . . . . . Kick 13 | . 7 2 . 4 . Crush . | . . . . . . Escape Stasis . | . . . . . . Rewire . | . . . . . . Trap . | . . . . . . Miscellaneous 54 | . 17 14 . 14 9 Route ------- -11/Scrapyard -10/Materials (discovered 4 exits: *Mat x3 / *Min) -10/Mines (discovered 4 exits: *Mat x2 / *Exi / [*Sub]) -10/Exiles (discovered 2 exits: [*Min x2]) -9/Mines (discovered 2 exits: [*Mat x2]) -8/Materials (discovered 1 exit: Fac) History --------- Turn | Location | Event 5 | -11/Scrapyard | Upgraded with Propulsion slot (x1) 5 | -11/Scrapyard | Upgraded with Utility slot (x1) 5 | -11/Scrapyard | Upgraded with Weapon slot (x1) 5 | -11/Scrapyard | Discovered new exit (range 15) 86 | -11/Scrapyard | Entered Materials 176 | -10/Materials | Discovered new exit (range 16) 301 | -10/Materials | Build established: Mutant 408 | -10/Materials | Discovered new exit (range 5) 529 | -10/Materials | Central database locked down 609 | -10/Materials | Reached level 2 758 | -10/Materials | Discovered new exit (range 16) 987 | -10/Materials | Discovered new exit (range 11) 1078 | -10/Materials | Identified exit to Materials 1306 | -10/Materials | Upgraded with Utility slot (x1) 1306 | -10/Materials | Upgraded with Weapon slot (x1) 1402 | -10/Materials | Entered Mines 1404 | -10/Mines | Reached level 3 1468 | -10/Mines | Met a Derelict shopkeep closing up shop 1546 | -10/Mines | Discovered exit to Materials (range 8) 1597 | -10/Mines | Deemed a non-threat by the Exiles lab entrance 1597 | -10/Mines | Discovered new exit (range 5) 1599 | -10/Mines | Build established: Gunner 1756 | -10/Mines | Received a Rocket Launcher from a helpful Derelict 1861 | -10/Mines | Met a Derelict testing a Signal Generator 1985 | -10/Mines | Learned 4 Materials zone layouts 1985 | -10/Mines | Discovered new exit (range 6) 1999 | -10/Mines | Discovered exit to Materials (range 5) 2280 | -10/Mines | Entered Exiles 2282 | -10/Exiles | Reached level 4 2297 | -10/Exiles | Discovered new exit (range 15) 2314 | -10/Exiles | Met 8R-AWN 2332 | -10/Exiles | Met EX-HEX 2400 | -10/Exiles | Met EX-BIN 2503 | -10/Exiles | Met EX-DEC 2508 | -10/Exiles | Learned location of Zion (-7) 2557 | -10/Exiles | Discovered new exit (range 10) 2567 | -10/Exiles | Entered Mines 2762 | -9/Mines | Reached level 5 2790 | -9/Mines | Joined a pair of Derelicts in attacking an 0b10 outpost 3427 | -9/Mines | Discovered new exit (range 12) 3594 | -9/Mines | Discovered new exit (range 9) 3951 | -9/Mines | Entered Materials 3952 | -8/Materials | Identified exit to Factory 3953 | -8/Materials | Reached level 6 4159 | -8/Materials | Reached level 7 4166 | -8/Materials | Core integrity fell below 50% 4179 | -8/Materials | Garrison activated, responded to threat 4194 | -8/Materials | Core integrity fell below 20% 4201 | -8/Materials | Destroyed by X-62 Marksman with Gauss Rifle Last Messages --------------- 04179_ ALERT: Activating Garrison Access M001. 04179_ U-05 Engineer builds a Wall. 04181_ U-05 Engineer destroyed. 04181_ A-02 Transporter destroyed. 04181_ Destroyed Lgt. Nuclear Core. 04181_ G-47 Trooper destroyed. 04187_ Penetrated by Slug. 04189_ K-01 Serf collects debris. 04190_ Penetrated by Slug. 04190_ Destroyed Aluminum Leg. 04191_ The unstable cave ceiling collapses. 04192_ Penetrated by Slug. 04192_ Critical hit (Burn: +37). 04192_ K-01 Serf collects debris. 04193_ G-47 Trooper misfires. 04193_ Penetrated by Slug. 04193_ K-01 Serf destroyed. 04195_ Slug penetrates Wall. 04195_ EM Pulse Gun destroyed. 04196_ Penetrated by Slug. Map ----- +----------------------------------------------------+ | ?????????????????????????????????????????????????? | | ?????????????????????????????????????????????????? | | ?????????????????????????????????????????????????? | | ?????????????????????????????????????????????????? | | ?????????????????????????????????????????????????? | | ?????????????????????????????????????????????????? | | ?????????????????????????????????????????????????? | | ?????????????????????????????????????????????????? | | ?????????????????T"??????????????????????????????? | | ?????? T #######??????????????????? | | ?????? #????????????????????????? | | ?????? #????????????????????????? | | ??????# ########?????????????????? | | ??????# # #?????????????????? | | ??????# """ # #?????????????????? | | ??????# """ / ##????????????????? | | ??????# """ # ## ???????????????? | | ??????# # ## ???????????????? | | ??????# # % ?# ???????????????? | | ??????# ##########"""###+#######????????? | | ??????# #????????#"!;## #????????? | | ??????# ??????#"*; # #????????? | | ??????# % #######x!## #????????? | | ??????# w ![=%%%x% #= #????????? | | ??????# *[[%=*===*+% #????????? | | ??????# g [[[@*%= # #????????? | | ??????# # ######## # #????????? | | ??????# # # #?#### # #????????? | | ??????# # """ # """ #?# #????????? | | ??????+ + """ # "R ### +####????????? | | ??????# # """ # """ ## #???????????? | | ??????# # # ## % # ######??????? | | ??????+ ######## ## #??????? | | ??????##+#####???######### ||*! #??????? | | ????# ???????????????????# #%= #??????? | | ????# ???????????????????# =%#! #####??????? | | ????# ???????????????????# %%" #??????????? | | ????# ???????????????????# ![" #??????????? | | ????# ???????????????????# =# #??????????? | | ????# ???????????????????## # [ # #??????????? | | ????# ????????????????????# ####### #??????????? | | ????# ???????????????????? #? # #??????????? | | ????# ??????????????????? ??? # #??????????? | | ????##??????????????????# ?????? # #??????????? | | ????????????????????????##????????# #??????????? | | ?????????????????????????????????? +??????????? | | ??????????????????????????????????# #??????????? | | ??????????????????????????????????# #??????????? | | ??????????????????????????????????? #??????????? | | ??????????????????????????????????? #??????????? | +----------------------------------------------------+ Best States ------------- Heat Dissipation 35 Energy Generation 10 Energy Capacity 250 Matter Stores 300 Matter Capacity 300 Sight Range 16 Robot Scan Range 14 Terrain Scan Range 16 Terrain Scan Density 10 ECM Strength 1 Armor Coverage 225 Evasion (%) 55 Item Schematics ----------------- None Robot Schematics ------------------ None Fabricated ------------ Nothing Alien Tech Used ----------------- None Achievements -------------- None Challenges ------------ None RPGLIKE | -11 -10 -10 -10 -9 -8 --------- Run | Yrd Mat Min Exi Min Mat Levels Raised 6 | . 1 1 1 1 2 XP Earned 12728 | 3000 2770 1582 200 1850 3326 XP Spent 4725 | 2625 1600 500 . . . Upgrades 14 | 11 2 1 . . . Propulsion Slot 1 | 1 . . . . . Utility Slot 2 | 1 1 . . . . Weapon Slot 2 | 1 1 . . . . Inventory Capacity 2 | 1 . 1 . . . Sensor Range 7 | 7 . . . . . Protomatter Created 610 | . 203 114 . 32 261 Integrity Restored 1214 | . 396 299 . 312 207 Core 1081 | . 396 175 . 303 207 Parts 133 | . . 124 . 9 . Protomatter Decayed 186 | . 71 53 . . 62 Game ------ Seed TransportDisruptionCapacitor Manual? 0 Play Time 00:40:47 Cumulative 963.9 hours Start 2025.04.28 @ 12:30:16 End 2025.04.28 @ 13:13:16 Sessions 1 Manual Loads 0 Difficulty Rogue Special Mode Winter2019/RPGLIKE Game No. 73 Rogue 13 Adventurer 46 Explorer 14 Win Type - Total 49 Types 26/4/10/1/1/2/0/3/2 Lore% 85 Gallery% 94 Achievement% 80 Wizard Run 0 Options --------- Layout 0 ASCII 0 Keyboard 1 Movement Arrows Keybinds 0 Fullscreen 2 Font 36/Terminus++ Map View 76x50 Zoom Use 0% Tactical HUD 1 Map Filters NONE Filters NONE Steam 0 RUN: 72561dc2-0eaa-4af9-b339-5c761e95cb64